fUST/lending_fUST_20250131
["ID","MTS","AMOUNT","RATE_DAILY","PERIOD"]
[351063114,1738321853142,-2235.51,0.00018904,2]
[351063115,1738321853158,-638.48,0.00018904,2]
[351063116,1738321853168,-168.55606491,0.00018959,2]
[351063117,1738321853178,-618.70461746,0.00018969,2]
[351063118,1738321853187,-302.96970909,0.00019,2]
[351063119,1738321853197,-151.0,0.00019041,2]
[351063120,1738321853207,-885.06,0.00019041,2]
[351063121,1738321853217,-847.3,0.00019041,2]
[351063122,1738321853227,-4871.9,0.00019041,2]
[351063123,1738321853237,-601.45,0.00019041,2]
[351063124,1738321853247,-500.0,0.00019041,2]
[351063125,1738321853257,-797.85,0.00019041,2]
[351063126,1738321853267,-650.06,0.00019041,2]
[351063127,1738321853276,-2235.51,0.00019041,2]
[351063128,1738321853286,-638.48,0.00019041,2]
[351063129,1738321853295,-168.55606491,0.00019096,2]
[351063130,1738321853305,-714.99,0.00019106,2]
[351063131,1738321853314,-618.70461746,0.00019176,2]
[351063132,1738321853323,-500.0,0.00019178,7]
[351063133,1738321853332,-500.0,0.00019178,2]
[351063134,1738321853340,-500.0,0.00019178,2]
[351063135,1738321853349,-500.0,0.00019178,2]
[351063136,1738321853359,-500.0,0.00019178,2]
[351063137,1738321853368,-500.0,0.00019178,2]
[351063138,1738321853377,-500.0,0.00019178,2]
[351063139,1738321853386,-500.0,0.00019178,2]
[351063140,1738321853395,-500.0,0.00019178,2]
[351063141,1738321853409,-500.0,0.00019178,2]
[351063142,1738321853418,-500.0,0.00019178,2]
[351063143,1738321853426,-428.20534188,0.00019178,2]
[351063144,1738321853436,-305.11027799,0.00019178,2]
[351063145,1738321853445,-885.06,0.00019178,2]
[351063146,1738321853454,-847.3,0.00019178,2]
[351063147,1738321853463,-4871.9,0.00019178,2]
[351063148,1738321853473,-601.45,0.00019178,2]
[351063149,1738321853483,-500.0,0.00019178,2]
[351063150,1738321853492,-500.0,0.00019178,2]
[351063151,1738321853506,-500.0,0.00019178,2]
[351063152,1738321853515,-797.85,0.00019178,2]
[351063153,1738321853524,-650.06,0.00019178,2]
[351063154,1738321853533,-2235.51,0.00019178,2]
[351063155,1738321853543,-638.48,0.00019178,2]
[351063156,1738321853552,-499.0,0.00019178,2]
[351063157,1738321853561,-166.875064,0.00019178,2]
[351063158,1738321853569,-162.518657,0.00019178,2]
[351063159,1738321853578,-714.99,0.00019199,2]
[351063160,1738321853588,-714.99,0.00019199,2]
[351063161,1738321853597,-714.99,0.00019199,2]
[351063162,1738321853606,-714.99,0.00019199,2]
[351063163,1738321853615,-714.99,0.00019199,2]
[351063164,1738321853625,-714.99,0.00019199,2]
[351063165,1738321853634,-1314.43,0.000192,2]
[351063166,1738321853643,-168.55606491,0.0001926,2]
[351063167,1738321853657,-160.0,0.00019314,2]
[351063168,1738321853667,-714.99,0.00019314,2]
[351063169,1738321853677,-714.99,0.00019314,2]
[351063170,1738321853686,-714.99,0.00019314,2]
[351063171,1738321853695,-714.99,0.00019314,2]
[351063172,1738321853705,-715.11874519,0.00019314,2]
[351063173,1738321853714,-151.0,0.00019315,2]
[351063174,1738321853723,-885.06,0.00019315,2]
[351063175,1738321853732,-847.3,0.00019315,2]
[351063176,1738321853741,-4871.9,0.00019315,2]
[351063177,1738321853750,-601.45,0.00019315,2]
[351063178,1738321853759,-500.0,0.00019315,2]
[351063179,1738321853768,-797.85,0.00019315,2]
[351063180,1738321853777,-650.06,0.00019315,2]
[351063181,1738321853786,-2235.51,0.00019315,2]
[351063182,1738321853795,-638.48,0.00019315,2]
[351063183,1738321853804,-618.70461746,0.00019383,2]
[351063184,1738321853813,-168.55606491,0.00019397,2]
[351063185,1738321853823,-885.06,0.00019452,2]
[351063186,1738321853832,-847.3,0.00019452,2]
[351063187,1738321853841,-4871.9,0.00019452,2]
[351063188,1738321853850,-601.45,0.00019452,2]
[351063189,1738321853859,-578.26696141,0.00019452,2]
[351063190,1738321853868,-797.85,0.00019452,2]
[351063191,1738321853877,-650.06,0.00019452,2]
[351063192,1738321853886,-2235.51,0.00019452,2]
[351063193,1738321853895,-638.48,0.00019452,2]
[351063194,1738321853908,-178.976167,0.000195,2]
[351063195,1738321853917,-416.0,0.000195,8]
[351063196,1738321853926,-168.55606491,0.00019534,2]
[351063197,1738321853936,-528.75398984,0.00019537,2]
[351063198,1738321853945,-885.28464943,0.00019589,2]
[351063199,1738321853954,-847.48820584,0.00019589,2]
[351063200,1738321853963,-4871.9382087,0.00019589,2]
[351063201,1738321853973,-601.64619346,0.00019589,2]
[351063202,1738321853981,-798.06722982,0.00019589,2]
[351063203,1738321853990,-650.08365885,0.00019589,2]
[351063204,1738321853999,-2235.51917598,0.00019589,2]
[351063205,1738321854008,-638.71573813,0.00019589,2]
[351063206,1738321854017,-618.70461746,0.0001959,2]
[351063207,1738321854027,-587.0,0.00019631,2]
[351063208,1738321854037,-528.75398984,0.00019637,2]
[351063209,1738321854046,-168.55606491,0.00019671,2]
[351063210,1738321854055,-183.0516808,0.00019677,2]
[351063211,1738321854064,-528.75398984,0.00019737,2]
[351063212,1738321854073,-618.70461746,0.00019797,2]
[351063213,1738321854082,-168.55606491,0.00019836,2]
[351063214,1738321854093,-528.75398984,0.00019837,2]
[351063215,1738321854172,-500.0,0.00019863,9]
[351063216,1738321854191,-515.5,0.00019873,7]
[351063217,1738321854200,-528.75398984,0.00019937,2]
[351063218,1738321854210,-154.938,0.0001995,2]
[351063219,1738321854219,-168.55606491,0.00019973,2]
[351063220,1738321854229,-160.0,0.00019999,2]
[351063221,1738321854239,-160.0,0.0002,2]
[351063222,1738321854248,-1500.0,0.0002,2]
[351063223,1738321854257,-1500.0,0.0002,2]
[351063224,1738321854266,-1500.0,0.0002,2]
[351063225,1738321854275,-1500.0,0.0002,2]
[351063226,1738321854285,-1500.0,0.0002,2]
[351063227,1738321854294,-1500.0,0.0002,2]
[351063228,1738321854304,-1500.0,0.0002,2]
[351063229,1738321854313,-1500.0,0.0002,2]
[351063230,1738321854322,-1500.0,0.0002,2]
[351063231,1738321854333,-1500.0,0.0002,2]
[351063232,1738321854342,-1500.0,0.0002,2]
[351063233,1738321854351,-1500.0,0.0002,2]
[351063234,1738321854361,-1500.0,0.0002,2]
[351063235,1738321854369,-1500.0,0.0002,2]
[351063236,1738321854378,-1500.0,0.0002,2]
[351063237,1738321854387,-1500.0,0.0002,2]
[351063238,1738321854396,-1500.0,0.0002,2]
[351063239,1738321854408,-1502.6403038,0.0002,2]
[351063240,1738321854417,-14876.0,0.0002,2]
[351063241,1738321854426,-185.7837186,0.0002,2]
[351063242,1738321854435,-7966.2,0.0002,2]
[351063243,1738321854444,-6492.49,0.0002,2]
[351063244,1738321854453,-150.0,0.0002,30]
[351063245,1738321854462,-618.70461746,0.00020003,2]
[351063246,1738321854471,-528.75398984,0.00020037,2]
[351063247,1738321854480,-160.0,0.00020038,3]
[351063248,1738321854489,-528.75398984,0.00020137,2]
[351063249,1738321854499,-151.126,0.00020209,2]
[351063250,1738321854510,-1200.0,0.00020209,2]
[351063251,1738321854519,-500.238,0.00020209,2]
[351063252,1738321854528,-618.70461746,0.0002021,2]
[351063253,1738321854537,-528.75398984,0.00020237,2]
[351063254,1738321854548,-296.0,0.0002027,3]
[351063255,1738321854557,-500.0,0.00020286,2]
[351063256,1738321854566,-500.0,0.00020286,2]
[351063257,1738321854575,-574.65188602,0.00020286,2]
[351063258,1738321854585,-528.75398984,0.00020337,2]
[351063259,1738321854594,-160.0,0.00020354,5]
[351063260,1738321854604,-618.70461746,0.00020417,2]
[351063261,1738321854613,-500.0,0.00020424,2]
[351063262,1738321854622,-500.0,0.00020424,2]
[351063263,1738321854631,-500.70828839,0.00020424,2]
[351063264,1738321854640,-528.75398984,0.00020437,2]
[351063265,1738321854651,-209.108798,0.00020447,2]
[351063266,1738321854660,-183.0516808,0.00020512,2]
[351063267,1738321854669,-528.75398984,0.00020537,2]
[351063268,1738321854678,-500.0,0.00020547,11]
[351063269,1738321854687,-500.0,0.00020547,2]
[351063270,1738321854696,-500.0,0.00020547,2]
[351063271,1738321854705,-500.0,0.00020547,2]
[351063272,1738321854715,-500.0,0.00020547,2]
[351063273,1738321854724,-500.0,0.00020547,2]
[351063274,1738321854733,-500.0,0.00020547,2]
[351063275,1738321854742,-500.0,0.00020547,2]
[351063276,1738321854751,-500.0,0.00020547,2]
[351063277,1738321854760,-500.0,0.00020547,2]
[351063278,1738321854769,-500.0,0.00020547,2]
[351063279,1738321854778,-500.0,0.00020547,2]
[351063280,1738321854788,-500.0,0.00020547,2]
[351063281,1738321854797,-500.0,0.00020547,2]
[351063282,1738321854806,-500.0,0.00020547,2]
[351063283,1738321854815,-500.0,0.00020547,2]
[351063284,1738321854824,-500.0,0.00020547,2]
[351063285,1738321854833,-408.26610783,0.00020547,2]
[351063286,1738321854842,-499.0,0.00020547,4]
[351063287,1738321854852,-347.18463884,0.00020548,2]
[351063288,1738321854861,-618.70461746,0.00020624,2]
[351063289,1738321854870,-528.75398984,0.00020637,2]
[351063290,1738321854879,-167.0,0.00020702,2]
[351063291,1738321854889,-186.0,0.00020732,2]
[351063292,1738321854898,-159.0,0.00020732,2]
[351063293,1738321854908,-159.0,0.00020732,2]
[351063294,1738321854918,-159.0,0.00020732,2]
[351063295,1738321854927,-159.0,0.00020732,2]
[351063296,1738321854935,-159.0,0.00020732,2]
[351063297,1738321854944,-159.0,0.00020732,2]
[351063298,1738321854953,-159.0,0.00020732,2]
[351063299,1738321854962,-159.0,0.00020732,2]
[351063300,1738321854971,-159.0,0.00020732,2]
[351063301,1738321854979,-159.0,0.00020732,2]
[351063302,1738321854988,-159.0,0.00020732,2]
[351063303,1738321854997,-159.0,0.00020732,2]
[351063304,1738321855006,-159.0,0.00020732,2]
[351063305,1738321855015,-159.0,0.00020732,2]
[351063306,1738321855025,-159.0,0.00020732,2]
[351063307,1738321855035,-159.0,0.00020732,2]
[351063308,1738321855045,-159.0,0.00020732,2]
[351063309,1738321855055,-159.0,0.00020732,2]
[351063310,1738321855067,-159.0,0.00020732,2]
[351063311,1738321855077,-159.0,0.00020732,2]
[351063312,1738321855087,-159.0,0.00020732,2]
[351063313,1738321855097,-159.0,0.00020732,2]
[351063314,1738321855106,-159.0,0.00020732,2]
[351063315,1738321855114,-159.0,0.00020732,2]
[351063316,1738321855123,-159.0,0.00020732,2]
[351063317,1738321855132,-159.0,0.00020732,2]
[351063318,1738321855141,-159.0,0.00020732,2]
[351063319,1738321855152,-159.0,0.00020732,2]
[351063320,1738321855161,-159.0,0.00020732,2]
[351063321,1738321855170,-159.0,0.00020732,2]
[351063322,1738321855179,-159.0,0.00020732,2]
[351063323,1738321855188,-159.0,0.00020732,2]
[351063324,1738321855198,-159.0,0.00020732,2]
[351063325,1738321855207,-159.0,0.00020732,2]
[351063326,1738321855215,-159.0,0.00020732,2]
[351063327,1738321855226,-159.0,0.00020732,2]
[351063328,1738321855235,-159.0,0.00020732,2]
[351063329,1738321855243,-159.0,0.00020732,2]
[351063330,1738321855253,-165.72,0.00020732,2]
[351063331,1738321855262,-224.07,0.00020732,2]
[351063332,1738321855271,-167.0,0.00020732,2]
[351063333,1738321855280,-253.65,0.00020732,2]
[351063334,1738321855289,-250.0,0.00020734,2]
[351063335,1738321855298,-159.0,0.00020734,2]
[351063336,1738321855307,-159.0,0.00020734,2]
[351063337,1738321855315,-159.0,0.00020734,2]
[351063338,1738321855324,-159.0,0.00020734,2]
[351063339,1738321855334,-159.0,0.00020734,2]
[351063340,1738321855344,-159.0,0.00020734,2]
[351063341,1738321855353,-159.0,0.00020734,2]
[351063342,1738321855363,-159.0,0.00020734,2]
[351063343,1738321855372,-159.0,0.00020734,2]
[351063344,1738321855381,-159.0,0.00020734,2]
[351063345,1738321855391,-159.0,0.00020734,2]
[351063346,1738321855402,-159.0,0.00020734,2]
[351063347,1738321855411,-159.0,0.00020734,2]
[351063348,1738321855420,-159.0,0.00020734,2]
[351063349,1738321855430,-159.0,0.00020734,2]
[351063350,1738321855439,-159.0,0.00020734,2]
[351063351,1738321855448,-159.0,0.00020734,2]
[351063352,1738321855458,-282.0,0.00020734,2]
[351063353,1738321855468,-528.75398984,0.00020737,2]
[351063354,1738321855477,-500.0,0.0002074,2]
[351063355,1738321855487,-274.0,0.00020787,5]
[351063356,1738321855499,-1343.4945254,0.00020788,2]
[351063357,1738321855509,-159.0,0.00020798,2]
[351063358,1738321855518,-159.0,0.00020798,2]
[351063359,1738321855528,-159.0,0.00020798,2]
[351063360,1738321855539,-159.0,0.00020798,2]
[351063361,1738321855549,-159.0,0.00020798,2]
[351063362,1738321855558,-159.0,0.00020798,2]
[351063363,1738321855567,-159.0,0.00020798,2]
[351063364,1738321855576,-159.0,0.00020798,2]
[351063365,1738321855587,-159.0,0.00020798,2]
[351063366,1738321855596,-159.0,0.00020798,2]
[351063367,1738321855606,-159.0,0.00020798,2]
[351063368,1738321855616,-159.0,0.00020798,2]
[351063369,1738321855626,-159.0,0.00020798,2]
[351063370,1738321855635,-159.0,0.00020798,2]
[351063371,1738321855644,-159.0,0.00020798,2]
[351063372,1738321855657,-159.0,0.00020798,2]
[351063373,1738321855666,-159.0,0.00020798,2]
[351063374,1738321855675,-159.0,0.00020798,2]
[351063375,1738321855685,-159.0,0.00020798,2]
[351063376,1738321855694,-159.0,0.00020798,2]
[351063377,1738321855703,-159.0,0.00020798,2]
[351063378,1738321855712,-159.0,0.00020798,2]
[351063379,1738321855721,-159.0,0.00020798,2]
[351063380,1738321855730,-159.0,0.00020798,2]
[351063381,1738321855739,-159.0,0.00020798,2]
[351063382,1738321855748,-159.0,0.00020798,2]
[351063383,1738321855757,-159.0,0.00020798,2]
[351063384,1738321855766,-159.0,0.00020798,2]
[351063385,1738321855775,-159.0,0.00020798,2]
[351063386,1738321855784,-159.0,0.00020798,2]
[351063387,1738321855793,-159.0,0.00020798,2]
[351063388,1738321855802,-159.0,0.00020798,2]
[351063389,1738321855811,-159.0,0.00020798,2]
[351063390,1738321855820,-159.0,0.00020798,2]
[351063391,1738321855829,-159.0,0.00020798,2]
[351063392,1738321855838,-159.0,0.00020798,2]
[351063393,1738321855847,-246.0,0.00020798,2]
[351063394,1738321855856,-157.0,0.00020798,2]
[351063395,1738321855931,-157.0,0.00020798,2]
[351063396,1738321855947,-157.0,0.00020798,2]
[351063397,1738321855956,-157.0,0.00020798,2]
[351063398,1738321855965,-157.0,0.00020798,2]
[351063399,1738321855975,-157.0,0.00020798,2]
[351063400,1738321855984,-157.0,0.00020798,2]
[351063401,1738321855993,-157.0,0.00020798,2]
[351063402,1738321856002,-157.0,0.00020798,2]
[351063403,1738321856011,-157.0,0.00020798,2]
[351063404,1738321856020,-157.0,0.00020798,2]
[351063405,1738321856030,-157.0,0.00020798,2]
[351063406,1738321856039,-157.0,0.00020798,2]
[351063407,1738321856048,-157.0,0.00020798,2]
[351063408,1738321856057,-157.0,0.00020798,2]
[351063409,1738321856066,-157.0,0.00020798,2]
[351063410,1738321856075,-157.0,0.00020798,2]
[351063411,1738321856084,-157.0,0.00020798,2]
[351063412,1738321856093,-157.0,0.00020798,2]
[351063413,1738321856102,-157.0,0.00020798,2]
[351063414,1738321856111,-175.0,0.00020798,2]
[351063415,1738321856121,-1157.375536,0.0002082,5]
[351063416,1738321856130,-618.70461746,0.00020831,2]
[351063417,1738321856139,-1000.0,0.00020834,2]
[351063418,1738321856149,-1000.0,0.00020834,2]
[351063419,1738321856162,-528.75398984,0.00020837,2]
[351063420,1738321856171,-1000.0,0.0002084,5]
[351063421,1738321856181,-1000.0,0.0002086,5]
[351063422,1738321856191,-2500.0,0.00020863,2]
[351063423,1738321856200,-2500.0,0.00020872,2]
[351063424,1738321856209,-1000.0,0.0002088,5]
[351063425,1738321856219,-2500.0,0.0002088,2]
[351063426,1738321856228,-2500.0,0.00020889,2]
[351063427,1738321856238,-2500.0,0.00020898,2]
[351063428,1738321856247,-189.0,0.000209,2]
[351063429,1738321856256,-1000.0,0.000209,5]
[351063430,1738321856266,-159.76624951,0.000209,2]
[351063431,1738321856275,-150.0,0.000209,2]
[351063432,1738321856284,-182.946355,0.000209,2]
[351063433,1738321856293,-1000.0,0.000209,2]
[351063434,1738321856301,-477.81369076,0.00020915,2]
[351063435,1738321856310,-528.75398984,0.00020937,2]
[351063436,1738321856319,-1000.0,0.00020971,2]
[351063437,1738321856329,-500.34425733,0.00020971,2]
[351063438,1738321856338,-381.48586518,0.00020973,2]
[351063439,1738321856347,-500.0,0.00020973,2]
[351063440,1738321856356,-500.0,0.00020973,2]
[351063441,1738321856366,-500.0,0.00020973,2]
[351063442,1738321856375,-273.58811533,0.00020973,2]
[351063443,1738321856384,-500.00703491,0.00020973,2]
[351063444,1738321856393,-500.0,0.00020973,2]
[351063445,1738321856405,-500.0,0.00020973,2]
[351063446,1738321856415,-500.0,0.00020973,2]
[351063447,1738321856424,-500.0,0.00020973,2]
[351063448,1738321856433,-500.0,0.00020974,2]
[351063449,1738321856442,-500.0,0.00020974,2]
[351063450,1738321856451,-207.84,0.00020986,2]
[351063451,1738321856461,-160.0,0.00020996,2]
[351063452,1738321856470,-45038.88064981,0.00020997,2]
[351063453,1738321856479,-221.20386291,0.00020997,2]
[351063454,1738321856488,-151.42,0.00020998,2]
[351063455,1738321856498,-151.42,0.00020998,2]
[351063456,1738321856509,-151.42,0.00020998,2]
[351063457,1738321856518,-151.42,0.00020998,2]
[351063458,1738321856527,-151.46184856,0.00020998,2]
[351063459,1738321856537,-500.0,0.00020998,2]
[351063460,1738321856546,-500.0,0.00020998,2]
[351063461,1738321856557,-500.0,0.00020998,2]
[351063462,1738321856566,-500.0,0.00020998,2]
[351063463,1738321856575,-500.0,0.00020998,2]
[351063464,1738321856586,-500.0,0.00020998,2]
[351063465,1738321856595,-500.0,0.00020998,2]
[351063466,1738321856605,-500.0,0.00020998,2]
[351063467,1738321856614,-500.0,0.00020998,2]
[351063468,1738321856624,-500.0,0.00020998,2]
[351063469,1738321856634,-500.0,0.00020998,2]
[351063470,1738321856644,-500.0,0.00020998,2]
[351063471,1738321856654,-500.0,0.00020998,2]
[351063472,1738321856664,-500.0,0.00020998,2]
[351063473,1738321856673,-500.0,0.00020998,2]
[351063474,1738321856682,-500.0,0.00020998,2]
[351063475,1738321856691,-500.0,0.00020998,2]
[351063476,1738321856701,-500.0,0.00020998,2]
[351063477,1738321856710,-500.0,0.00020998,2]
[351063478,1738321856720,-500.0,0.00020998,2]
[351063479,1738321856729,-500.0,0.00020998,2]
[351063480,1738321856738,-500.0,0.00020998,2]
[351063481,1738321856748,-500.0,0.00020998,2]
[351063482,1738321856757,-500.0,0.00020998,2]
[351063483,1738321856766,-500.0,0.00020998,2]
[351063484,1738321856775,-500.0,0.00020998,2]
[351063485,1738321856784,-500.0,0.00020998,2]
[351063486,1738321856793,-500.0,0.00020998,2]
[351063487,1738321856802,-500.0,0.00020998,2]
[351063488,1738321856811,-500.0,0.00020998,2]
[351063489,1738321856821,-500.0,0.00020998,2]
[351063490,1738321856830,-500.0,0.00020998,2]
[351063491,1738321856839,-500.0,0.00020998,2]
[351063492,1738321856848,-500.0,0.00020998,2]
[351063493,1738321856857,-500.0,0.00020998,2]
[351063494,1738321856866,-500.0,0.00020998,2]
[351063495,1738321856875,-500.0,0.00020998,2]
[351063496,1738321856884,-595.47735631,0.00020998,2]
[351063497,1738321856894,-47687.06594324,0.00021,2]
[351063498,1738321856903,-4304.5764388,0.00021,3]
[351063499,1738321856912,-215951.09691038,0.00021,30]
[351063500,1738321856922,-1645.36475915,0.00021,30]
[351063501,1738321856931,-1000.0,0.00021,21]
[351063502,1738321856941,-5320.11484222,0.00021,30]
[351063503,1738321856950,-1867.13195225,0.00021,7]
[351063504,1738321856958,-5799.6687924,0.00021,30]
[351063505,1738321856967,-62692.64972817,0.00021,2]
[351063506,1738321856976,-24773.61773541,0.00021,7]
[351063507,1738321856986,-3000.0,0.00021,2]
[351063508,1738321856995,-416.0,0.00021,9]
[351063509,1738321857005,-160.0,0.00021,7]
[351063510,1738321857014,-3000.0,0.0002101,2]
[351063511,1738321857031,-3000.0,0.0002102,2]
[351063512,1738321857040,-3000.0,0.0002103,2]
[351063513,1738321857049,-528.75398984,0.00021037,2]
[351063514,1738321857058,-618.70461746,0.00021038,2]
[351063515,1738321857067,-3000.0,0.0002104,2]
[351063516,1738321857076,-3000.0,0.0002105,2]
[351063517,1738321857086,-3000.0,0.0002106,2]
[351063518,1738321857095,-3000.0,0.0002107,2]
[351063519,1738321857104,-3000.0,0.0002108,2]
[351063520,1738321857113,-3000.0,0.0002109,2]
[351063521,1738321857122,-3000.0,0.000211,2]
[351063522,1738321857132,-2021.07,0.00021102,2]
[351063523,1738321857141,-3000.0,0.0002111,2]
[351063524,1738321857149,-3000.0,0.0002112,2]
[351063525,1738321857158,-3000.0,0.0002113,2]
[351063526,1738321857167,-528.75398984,0.00021137,2]
[351063527,1738321857176,-3000.0,0.0002114,2]
[351063528,1738321857185,-3000.0,0.0002115,2]
[351063529,1738321857195,-3000.0,0.0002116,2]
[351063530,1738321857204,-3000.0,0.0002117,2]
[351063531,1738321857213,-500.0,0.0002117,2]
[351063532,1738321857222,-150.03,0.0002117,2]
[351063533,1738321857232,-500.0,0.0002117,2]
[351063534,1738321857241,-3000.0,0.0002118,2]
[351063535,1738321857251,-3000.0,0.0002119,2]
[351063536,1738321857260,-3000.0,0.000212,2]
[351063537,1738321857269,-7966.2,0.000212,2]
[351063538,1738321857278,-6492.49,0.000212,2]
[351063539,1738321857287,-3000.0,0.0002121,2]
[351063540,1738321857296,-3000.0,0.0002122,2]
[351063541,1738321857305,-3000.0,0.0002123,2]
[351063542,1738321857314,-528.75398984,0.00021237,2]
[351063543,1738321857324,-3000.0,0.0002124,2]
[351063544,1738321857332,-618.70461746,0.00021245,2]
[351063545,1738321857341,-3000.0,0.0002125,2]
[351063546,1738321857350,-3000.0,0.0002126,2]
[351063547,1738321857359,-3000.0,0.0002127,2]
[351063548,1738321857368,-3000.0,0.0002128,2]
[351063549,1738321857377,-3000.0,0.0002129,2]
[351063550,1738321857386,-3000.0,0.000213,2]
[351063551,1738321857395,-3000.0,0.0002131,2]
[351063552,1738321857404,-3000.0,0.0002132,2]
[351063553,1738321857413,-3000.0,0.0002133,2]
[351063554,1738321857422,-528.75398984,0.00021337,2]
[351063555,1738321857431,-3000.0,0.0002134,2]
[351063556,1738321857440,-183.0516808,0.00021346,2]
[351063557,1738321857450,-3000.0,0.0002135,2]
[351063558,1738321857459,-3000.0,0.0002136,2]
[351063559,1738321857532,-3000.0,0.0002137,2]
[351063560,1738321857550,-3000.0,0.0002138,2]
[351063561,1738321857560,-3000.0,0.0002139,2]
[351063562,1738321857569,-3000.0,0.000214,2]
[351063563,1738321857578,-6328.68001927,0.00021404,120]
[351063564,1738321857588,-3000.0,0.0002141,2]
[351063565,1738321857597,-3000.0,0.0002142,2]
[351063566,1738321857606,-3000.0,0.0002143,2]
[351063567,1738321857615,-528.75398984,0.00021437,2]
[351063568,1738321857624,-4649.143665,0.0002144,2]
[351063569,1738321857633,-500.0,0.00021444,2]
[351063570,1738321857643,-731.82759745,0.00021444,2]
[351063571,1738321857652,-618.70461746,0.00021452,2]
[351063572,1738321857671,-153.0,0.00021452,2]
[351063573,1738321857683,-823.0,0.00021454,2]
[351063574,1738321857692,-1227.399893,0.000215,5]
[351063575,1738321857701,-5682.97896071,0.000215,2]
[351063576,1738321857714,-782.83358001,0.000215,2]
[351063577,1738321857723,-1062.03038037,0.00021521,2]
[351063578,1738321857733,-521.98902054,0.00021521,2]
[351063579,1738321857742,-1000.0,0.00021521,2]
[351063580,1738321857751,-1000.0,0.00021521,2]
[351063581,1738321857760,-1000.0,0.00021521,2]
[351063582,1738321857769,-1000.0,0.00021521,2]
[351063583,1738321857778,-528.75398984,0.00021537,2]
[351063584,1738321857787,-5682.97896062,0.00021578,2]
[351063585,1738321857797,-70087.2542472,0.000216,2]
[351063586,1738321857807,-14876.0,0.000216,4]
[351063587,1738321857816,-528.75398984,0.00021637,2]
[351063588,1738321857825,-5682.97896062,0.00021656,2]
[351063589,1738321857834,-618.70461746,0.00021659,3]
[351063590,1738321857843,-500.0,0.00021718,2]
[351063591,1738321857853,-5682.97896062,0.00021734,2]
[351063592,1738321857862,-528.75398984,0.00021737,2]
[351063593,1738321857872,-507.64286575,0.00021777,30]
[351063594,1738321857881,-1333.0,0.00021781,120]
[351063595,1738321857890,-5682.97896062,0.00021812,2]
[351063596,1738321857900,-1500.0,0.00021836,2]
[351063597,1738321857909,-528.75398984,0.00021837,2]
[351063598,1738321857918,-7569.50906787,0.00021849,2]
[351063599,1738321857928,-5000.0,0.00021849,2]
[351063600,1738321857937,-5000.0,0.00021849,2]
[351063601,1738321857946,-5000.0,0.00021849,2]
[351063602,1738321857955,-5000.0,0.00021849,2]
[351063603,1738321857964,-618.70461746,0.00021866,3]
[351063604,1738321857973,-5682.97896062,0.0002189,2]
[351063605,1738321857982,-600.0,0.00021917,2]
[351063606,1738321857992,-600.0,0.00021917,2]
[351063607,1738321858002,-600.0,0.00021917,2]
[351063608,1738321858012,-600.0,0.00021917,2]
[351063609,1738321858021,-600.0,0.00021917,2]
[351063610,1738321858030,-600.0,0.00021917,2]
[351063611,1738321858040,-600.0,0.00021917,2]
[351063612,1738321858049,-600.0,0.00021917,2]
[351063613,1738321858059,-600.0,0.00021917,2]